[Event "Asian Amateur-ch Open 2022"]
[Site "Muscat"]
[Date "2022.10.02"]
[Round "2.4"]
[White "Al Kathiri, Mana"]
[Black "Mohammed Tareq Abbood Al-Latoo"]
[Result "0-1"]
[ECO "A06"]
[WhiteElo "1646"]
[BlackElo "1957"]
[Annotator "TA"]
[PlyCount "112"]
[EventDate "2022.09.29"]
[EventType "swiss"]
[SourceTitle "playchess.com"]
[Source "ChessBase"]
[SourceQuality "1"]
[TimeControl "5400+30"]

{[%evp 11,112,14,41,41,32,35,38,22,29,24,32,18,14,-35,-37,-40,-16,-17,-25,-21,-29,-73,-39,-39,-52,-40,-52,-108,-61,-60,-59,-59,-43,-45,-44,-49,-42,-39,-35,-53,-28,-35,-16,-48,-22,-36,-25,-26,-21,-33,-15,-49,-17,-52,-49,-52,0,0,0,-30,-28,-34,36,-42,33,-43,23,-164,-170,-178,-131,-131,-125,-150,-149,-205,-193,-429,-442,-400,-439,-424,-296,-1034,-943,-828,-801,-1428,-1325,-1252,-1208,-900,-241,-444,-495,-459,-462,-440,-228,-230,-238,-179,-237]} 1. Nf3 {[%emt 0:00:12]} Nf6 {[%emt 0:00:10]} 2. b3 {[%emt 0:00:17]} d5 {[%emt 0:00:08]} 3. Bb2 {[%emt 0:00:19]} c5 {[%emt 0:00:01]} 4. e3 {[%emt 0:00:20]} Nc6 {[%emt 0:00:08]} 5. Bb5 {[%emt 0:00:55]} Bg4 {[%emt 0:01:35]} 6. h3 {[%emt 0:02:03]} Bh5 {[%emt 0:01:27]} 7. g4 {[%emt 0:04:57] A06: Réti Opening: 1 Nf3 d5.} Bg6 {[%emt 0:00:29]} 8. Ne5 {[%emt 0:01:23]} Qc7 {[%emt 0:05:26]} 9. d3 {[%emt 0:10:45] White is slightly better.} ({But not} 9. Nxg6 hxg6 10. Qf3 e6 $11) 9... Nd7 {[%emt 0:03:31]} 10. Bxc6 {[%emt 0:01:01]} bxc6 {[%emt 0:00:15]} 11. f4 {[%emt 0:01:17]} f6 {[%emt 0:02:00] [#]} 12. Nf3 $146 {[%emt 0:02:07]} (12. Nxd7 $11 {should be considered.} Kxd7 13. O-O) ({Predecessor:} 12. Nxg6 hxg6 13. Qf3 e6 14. Nc3 Bd6 15. O-O-O O-O-O 16. h4 Rh6 17. Rh3 Rdh8 18. Rdh1 {1-0 (26) Suder,R (2138)-Falkowski,D (2059) Wagrowiec 2016}) 12... e5 $15 {[%emt 0:03:07]} 13. Qe2 {[%emt 0:10:55]} O-O-O {[%emt 0:10:54]} 14. f5 {[%emt 0:09:46]} Bf7 {[%emt 0:02:08]} 15. Nbd2 {[%emt 0:01:04]} Qa5 {[%emt 0:02:11] aiming for ...e4.} 16. c3 {[%emt 0:12:36]} Bd6 {[%emt 0:04:07]} 17. e4 {[%emt 0:03:23]} g5 {[%emt 0:07:40]} 18. Kf2 {[%emt 0:04:55]} h5 {[%emt 0:02:43] White must now prevent ...hxg4.} 19. a3 {[%emt 0:00:58]} (19. Kg2 $15) 19... Qa6 {[%emt 0:07:06]} (19... c4 $17 20. dxc4 dxc4) 20. c4 {[%emt 0:07:11]} Rh6 {[%emt 0:10:57]} 21. Kg2 {[%emt 0:03:14]} Qb7 {[%emt 0:01:39]} 22. Qd1 {[%emt 0:02:53]} Rdh8 {[%emt 0:00:28]} 23. Qc2 {[%emt 0:00:27]} Kd8 {[%emt 0:02:15]} 24. Rab1 {[%emt 0:00:55]} Ke7 {[%emt 0:02:25]} 25. Rbe1 {[%emt 0:02:16]} d4 {[%emt 0:01:31]} 26. Rb1 {[%emt 0:00:21]} Qa6 {[%emt 0:04:34]} 27. Rh2 {[%emt 0:03:25]} R8h7 {[%emt 0:02:06]} 28. Ra1 {[%emt 0:01:27]} Qc8 {[%emt 0:00:01]} 29. Rah1 {[%emt 0:00:30]} a5 {[%emt 0:02:13]} 30. Qd1 {[%emt 0:00:36]} Bc7 {[%emt 0:00:34]} 31. Qc2 {[%emt 0:00:17]} Nb6 {[%emt 0:00:37]} 32. a4 {[%emt 0:00:41][%cal Of3g5]} Qh8 {[%emt 0:02:52]} 33. Qd1 {[%emt 0:00:57]} Nc8 {[%emt 0:00:48]} (33... Rg7 $15) 34. Ba3 $11 {[%emt 0:00:02]} Bb6 {[%emt 0:02:08]} 35. Qe1 {[%emt 0:00:09]} Nd6 {[%emt 0:01:13]} 36. Nf1 {[%emt 0:01:21]} Be8 {[%emt 0:00:31]} (36... h4 $15) 37. Ng3 {[%emt 0:00:53]} (37. Bc1 $1 $14) 37... Qg7 {[%emt 0:04:06]} (37... h4 $15) 38. Qc1 {[%emt 0:00:32]} ({Better is} 38. Nxh5 $14 Bxh5 39. gxh5) 38... Rh8 {[%emt 0:02:11]} ({Black should play} 38... h4 $15 39. Nf1 Kd8) 39. b4 $2 {[%emt 0:01:02]} (39. Nxh5 $11 Bxh5 40. gxh5) 39... axb4 $19 {[%emt 0:01:30]} 40. Bxb4 {[%emt 0:00:30]} cxb4 {[%emt 0:01:21]} 41. c5 {[%emt 0:00:06]} Bc7 {[%emt 0:00:09] [#] Hoping for ...Nb7.} 42. cxd6+ Bxd6 {[%emt 0:00:01]} 43. Qc4 {[%emt 0:01:34]} (43. a5 $17) 43... Qf7 {[%emt 0:01:21]} 44. Qa6 {[%emt 0:02:27]} (44. Qxf7+ Bxf7 45. Nxh5) 44... hxg4 {[%emt 0:02:40]} 45. Nd2 {[%emt 0:01:28]} Qa2 {[%emt 0:00:37]} 46. Ngf1 {[%emt 0:00:32]} Qc2 {[%emt 0:04:20] [#] ...Qd1 is the strong threat.} 47. Kg3 $2 {[%emt 0:03:36]} (47. hxg4 Rxh2+ 48. Rxh2 Rxh2+ 49. Kxh2) 47... Qd1 {[%emt 0:02:56] And now ...Qe1+ would win.} 48. Qc4 {[%emt 0:01:05]} Qe1+ {[%emt 0:00:16]} 49. Kg2 {[%emt 0:01:51]} g3 {[%emt 0:00:53][%csl Gg3][%cal Re1f2]} 50. Qe6+ {[%emt 0:00:34]} Kd8 {[%emt 0:00:12][%csl Gg3][%cal Re1f2]} 51. Qxd6+ {[%emt 0:00:13]} Bd7 $2 {[%emt 0:00:01]} (51... Kc8 {[%csl Gg3][%cal Re1f2]} 52. Nxg3 Qxd2+ 53. Kg1 Qe3+ 54. Kf1 Qxd3+ 55. Kg2 g4) 52. Qb8+ $2 {[%emt 0:01:23]} (52. Kg1 gxh2+ 53. Rxh2) 52... Ke7 {[%emt 0:00:01][%csl Gg3][%cal Re1f2]} 53. Qxb4+ {[%emt 0:00:41]} c5 $1 {[%emt 0:00:01]} 54. Qxc5+ {[%emt 0:03:08]} Kf7 (54... Ke8 $142 {[%csl Gg3][%cal Re1f2]} 55. Nxg3 Qxd2+ 56. Kg1 Qe3+ 57. Kg2 Qd2+ 58. Kg1 Qxd3) 55. Qd5+ {[%emt 0:00:00]} Ke8 {[%emt 0:00:37][%csl Gg3][%cal Re1f2] The board is on fire.} 56. Nxg3 Qxd2+ {Weighted Error Value: White=0.43/Black=0.33} 0-1

[Event "Asian Amateur-ch Open 2022"]
[Site "Muscat"]
[Date "2022.10.02"]
[Round "2.5"]
[White "Salim Mohammed, Salim Al Amri"]
[Black "Al Balushi, Emad"]
[Result "1-0"]
[ECO "D80"]
[WhiteElo "1952"]
[BlackElo "1617"]
[Annotator "TA"]
[PlyCount "53"]
[EventDate "2022.09.29"]
[EventType "swiss"]
[SourceTitle "playchess.com"]
[Source "ChessBase"]
[SourceQuality "1"]
[TimeControl "5400+30"]

{[%evp 9,53,27,54,45,86,60,85,47,44,40,35,33,34,26,31,16,16,1,105,93,438,361,535,505,754,731,685,685,1012,983,1002,1002,980,910,1054,1054,1036,991,1510,1498,1324,1248,2539,2414,29989,583]} 1. d4 {[%emt 0:00:02]} Nf6 {[%emt 0:00:17]} 2. c4 {[%emt 0:00:07]} g6 {[%emt 0:01:06]} 3. Nc3 {[%emt 0:00:14]} d5 {[%emt 0:00:15]} 4. Bg5 {[%emt 0:01:17]} dxc4 {[%emt 0:02:06]} 5. e4 {[%emt 0:01:22]} c6 {[%emt 0:03:44]} 6. Bxc4 {[%emt 0:01:01] Threatens to win with Qb3. D80: Grünfeld: Unusual White 4th moves and 4 Bg5.} Bg7 {[%emt 0:00:22]} 7. a4 {[%emt 0:01:06] Inhibits b5. White is more active.} O-O {[%emt 0:03:02] [#]} 8. Nf3 $146 {[%emt 0:02:35] White is better.} ({Predecessor:} 8. Nge2 Qa5 9. e5 Nd5 10. Bxd5 cxd5 11. Bxe7 Re8 12. b4 Qa6 13. Bg5 Qc4 14. O-O {1-0 (27) Sloniewska,A (1409)-Rembecki,R (1366) Warsaw 2018}) 8... Bg4 {[%emt 0:01:30]} 9. Qd2 {[%emt 0:16:15]} Bxf3 {[%emt 0:12:55]} 10. gxf3 {[%emt 0:00:03]} Qd7 {[%emt 0:08:17]} 11. h4 {[%emt 0:03:38]} Nh5 {[%emt 0:06:43]} 12. Rd1 {[%emt 0:01:09]} Rd8 {[%emt 0:14:14][%cal Rg7d4]} 13. d5 {[%emt 0:02:32]} Bf6 {[%emt 0:11:45] [#]} (13... Qc7 $11 {remains equal.}) 14. Bxf6 $1 $16 {[%emt 0:03:49]} Nxf6 {[%emt 0:00:40][%mdl 8192] This costs Black the game.} (14... exf6 $16 15. d6 c5) 15. h5 $18 {[%emt 0:00:28] hxg6 is the strong threat.} Nxh5 {[%emt 0:08:56] [#]} (15... cxd5 {was necessary.} 16. hxg6 (16. exd5 Nxh5 17. Qg5 Kh8 $11) 16... fxg6) 16. Rxh5 $1 {[%emt 0:00:47][%mdl 512]} gxh5 {[%emt 0:00:09]} (16... Qe8 17. Qg5) 17. Qg5+ {[%emt 0:00:11]} Kh8 {[%emt 0:03:35]} 18. dxc6 {[%emt 0:00:12][%mdl 64] Discovered Attack} Qxd1+ {[%emt 0:02:10]} 19. Nxd1 {[%emt 0:00:04]} Nxc6 {[%emt 0:00:14]} 20. Bxf7 {[%emt 0:00:32]} Rf8 {[%emt 0:01:38]} 21. Qxh5 {[%emt 0:00:06]} Kg7 {[%emt 0:00:15]} 22. Bd5 {[%emt 0:00:15]} Rf6 {[%emt 0:00:52]} 23. Ne3 {[%emt 0:00:30]} Nd4 {[%emt 0:02:07]} 24. e5 {[%emt 0:00:52]} Rg6 {[%emt 0:00:29]} 25. Qh4 {[%emt 0:00:46]} Rg1+ {[%emt 0:08:29]} 26. Kd2 {[%emt 0:00:55]} e6 {[%emt 0:01:35]} 27. Qf6+ {[%emt 0:00:29] Weighted Error Value: White=0.10 (very precise) /Black=0.75} (27. Nf5+ $142 Kg8 28. Qf6 h5 29. Ne7+ Kh7 30. Be4+ Nf5 31. Qxe6 Rd8+ 32. Ke2) 1-0

[Event "Asian Amateur-ch Open 2022"]
[Site "Muscat"]
[Date "2022.10.02"]
[Round "2.6"]
[White "UMER S.M"]
[Black "Alharthi, Ahmed Mohammed A"]
[Result "1/2-1/2"]
[ECO "E62"]
[WhiteElo "1631"]
[BlackElo "1950"]
[Annotator "TA"]
[PlyCount "143"]
[EventDate "2022.09.29"]
[EventType "swiss"]
[SourceTitle "playchess.com"]
[Source "ChessBase"]
[SourceQuality "1"]
[TimeControl "5400+30"]

{[%evp 15,143,13,16,3,58,51,55,62,95,89,108,62,64,69,63,61,64,28,85,85,93,73,106,104,120,76,67,73,72,75,77,30,54,-4,48,-27,-10,-55,-43,-49,-17,-21,0,-133,-124,-114,-110,-124,-131,-131,-70,-140,-50,-84,-89,-109,-125,-131,-110,-150,-117,-176,-175,-175,-114,-116,-116,-365,-362,-328,-222,-206,-182,-507,-495,-466,-193,-189,-179,-137,441,435,410,259,258,232,196,203,181,0,0,-29985,-29986,-29986,-29968,-29961,-29971,-29971,-29972,-29968,-29937,-1577,0,-29975,-29969,-29966,-29967,-29978,-29964,-29963,-29964,-29966,-173,-154,0,0,0,0,0,0,0,0,0,0,0,0,0,0,0,0]} 1. d4 {[%emt 0:00:03]} Nf6 {[%emt 0:00:53]} 2. Nf3 {[%emt 0:00:03]} g6 {[%emt 0:00:20]} 3. g3 {[%emt 0:00:02]} Bg7 {[%emt 0:00:11]} 4. Bg2 {[%emt 0:00:02]} O-O {[%emt 0:00:11]} 5. O-O {[%emt 0:00:03]} d6 {[%emt 0:00:07]} 6. c4 {[%emt 0:00:02]} c6 {[%emt 0:00:55]} 7. Nc3 {[%emt 0:01:40]} Bf5 $1 {[%emt 0:00:48][%mdl 4] is currently scoring better than 7...Qa5.} 8. Nh4 {[%emt 0:02:00]} Be6 {[%emt 0:03:35]} 9. Qd3 {[%emt 0:03:30] E62: King's Indian: Fianchetto: 6...c6 and Panno Variation (6...Nc6) without ...a6.} Na6 {[%emt 0:02:58]} (9... d5 $11) 10. e4 $14 {[%emt 0:07:19] [#]} Nb4 $146 {[%emt 0:04:40]} ({Predecessor:} 10... d5 11. cxd5 cxd5 12. e5 Ne8 13. f4 Nb4 14. Qe2 Qd7 15. Be3 Nc7 16. Rac1 Rac8 {1-0 (39) Gruettemeier,U-Sandkamp,R (2215) Germany 1991}) 11. Qe2 {[%emt 0:02:05] White is slightly better.} Bg4 {[%emt 0:00:55]} 12. f3 {[%emt 0:01:09]} Bc8 {[%emt 0:01:37]} 13. a3 {[%emt 0:11:51]} (13. f4 $16) 13... Na6 {[%emt 0:00:37]} 14. Be3 {[%emt 0:03:32]} e5 {[%emt 0:01:47][%cal Of6g4]} 15. Rad1 {[%emt 0:04:56]} Qe7 {[%emt 0:01:11]} 16. d5 {[%emt 0:16:41]} c5 {[%emt 0:02:54]} (16... cxd5 $11 17. exd5 (17. Nxd5 Nxd5 18. cxd5 f5 $11) (17. cxd5 Bd7 $14) 17... Bd7) 17. Qd2 $16 {[%emt 0:04:29]} Nh5 {[%emt 0:05:10]} 18. Bh6 {[%emt 0:02:53]} f5 {[%emt 0:03:40]} 19. exf5 {[%emt 0:06:28]} gxf5 {[%emt 0:00:22]} 20. Qg5 {[%emt 0:04:32]} Qxg5 {[%emt 0:14:27]} 21. Bxg5 {[%emt 0:00:18]} Rf7 {[%emt 0:05:13]} 22. Bh3 {[%emt 0:10:31] White is more active.} Nc7 {[%emt 0:17:52]} 23. Ng2 {[%emt 0:11:30]} (23. Rf2 $16) 23... Rb8 {[%emt 0:05:34]} 24. g4 {[%emt 0:01:00]} (24. a4 $14) 24... h6 {[%emt 0:02:38]} (24... f4 $11) 25. Bc1 {[%emt 0:01:45]} (25. gxh5 $2 hxg5 26. Ne1 b5 $19) (25. Bd8 $1 $14 Nf4 26. Nxf4 exf4 27. Bxc7 Rxc7 28. Nb5 (28. gxf5 Bxc3 29. bxc3 b5 $14)) 25... f4 $1 $11 {[%emt 0:00:33]} 26. b4 {[%emt 0:03:08]} (26. Kf2 {is interesting.} b5 27. Rg1 Kh7 28. Ne1) 26... b6 {[%emt 0:01:07]} 27. Ne4 {[%emt 0:01:12]} Bf8 {[%emt 0:00:33]} 28. Nh4 {[%emt 0:00:37]} Nf6 {[%emt 0:00:51]} 29. Nf5 {[%emt 0:00:41]} (29. Nxf6+ $11 Rxf6 30. Rf2) 29... Nxe4 $17 {[%emt 0:03:53]} 30. fxe4 {[%emt 0:00:01]} Ne8 {[%emt 0:00:15]} 31. Bg2 {[%emt 0:01:06]} Nf6 {[%emt 0:01:54]} 32. Bf3 {[%emt 0:00:10]} Kh7 {[%emt 0:00:05]} (32... h5 $17 33. h3 hxg4 34. hxg4 Bxf5 35. gxf5 cxb4 36. axb4 Rc8) 33. Kh1 {[%emt 0:01:05]} (33. Bd2 $15) 33... Bd7 {[%emt 0:01:59]} ({Better is} 33... cxb4 $17 34. axb4 Rc7) 34. b5 {[%emt 0:00:20]} a6 {[%emt 0:01:25]} 35. a4 {[%emt 0:00:22]} axb5 {[%emt 0:00:52]} 36. axb5 {[%emt 0:00:01]} Ra8 $1 {[%emt 0:00:06] And now ...Ra4 would win.} 37. Rd3 {[%emt 0:00:34]} Ra1 {[%emt 0:01:31][%cal Oh6h5]} 38. Rg1 {[%emt 0:00:58]} (38. h3 $17) 38... h5 $1 $19 {[%emt 0:03:24]} 39. h3 {[%emt 0:00:02] g5 is the strong threat.} (39. gxh5 $2 Bxf5 40. exf5 e4 $19) 39... hxg4 {[%emt 0:00:07]} (39... Bxf5 $19 40. exf5 (40. gxf5 Rg7 $17) 40... hxg4 41. hxg4 e4) 40. hxg4 $17 {[%emt 0:00:21]} Kg6 {[%emt 0:00:21] Hoping for ...Ra4.} 41. Bd2 $2 {[%emt 0:01:13]} (41. Rd2 $17 {keeps fighting.}) 41... Rh7+ $19 {[%emt 0:01:17]} 42. Kg2 {[%emt 0:00:14]} Rxg1+ {[%emt 0:00:06]} 43. Kxg1 {[%emt 0:00:01]} Kg5 $1 {[%emt 0:01:24]} 44. Be1 $2 {[%emt 0:01:10]} (44. Ra3 {is more resistant.} Nxg4 45. Ng3) 44... Nxg4 {[%emt 0:02:43]} 45. Bh4+ {[%emt 0:00:48]} Kh5 {[%emt 0:00:07]} (45... Rxh4 $142 46. Nxh4 Kxh4) 46. Bd8 {[%emt 0:00:14]} Bxf5 {[%emt 0:01:49]} 47. exf5 {[%emt 0:00:01]} Rb7 $2 {[%emt 0:00:01][%mdl 8192]} (47... Ra7 $17 {Strongly threatening ...Be7.} 48. f6 (48. Bxb6 Ra1+ 49. Rd1 Ra3 $15) 48... Kh4 49. f7+ (49. Bxb6 Rb7 $15) 49... Kg3 50. Bxb6 Ra8 51. Bd1+ Ne3 52. Rxe3+ fxe3) 48. Rd2 $1 $18 {[%emt 0:01:09][%csl Gg1][%cal Rd2h2]} Be7 {[%emt 0:02:19]} 49. Rh2+ {[%emt 0:00:21]} Kg5 {[%emt 0:00:27] [#]} 50. Rh7 {[%emt 0:00:45]} Ra7 {[%emt 0:02:03] Threatens to win with ...Ra1+.} (50... Bxd8 $2 51. Rxb7 Ne3 52. Rb8) 51. Bxe7+ {[%emt 0:00:20]} ({Not} 51. Rxe7 Ra1+ 52. Kg2 Ra2+ 53. Kh1 Ra1+ 54. Kg2 Ra2+ 55. Kh1 Ra1+ 56. Kg2 $11) 51... Kxf5 {[%emt 0:00:25]} 52. Bxg4+ $2 {[%emt 0:00:37]} ({Only move:} 52. Rh5+ $18 Kg6 53. Rg5+ (53. Bxg4 Rxe7 54. Rh8 Ra7 $14) 53... Kh6 54. Rxg4 Rxe7 55. Be4) 52... Kxg4 {[%emt 0:00:06][%mdl 4096] Endgame KRB-KR} 53. Rh4+ $2 {[%emt 0:00:28][%mdl 8192]} (53. Kf2 $11) 53... Kg3 {[%emt 0:00:19][%cal Ra7a1]} 54. Kf1 {[%emt 0:00:34]} Rxe7 {[%emt 0:00:14] KR-KR} 55. Rh6 {[%emt 0:00:03]} Rd7 {[%emt 0:00:24]} 56. Ke2 {[%emt 0:00:22]} f3+ {[%emt 0:02:07]} 57. Ke3 {[%emt 0:00:01]} e4 {[%emt 0:00:13]} 58. Rg6+ {[%emt 0:00:14]} Kh2 $2 {[%emt 0:00:10]} (58... Kh3 $19 59. Kf2 Ra7 60. Rh6+ Kg4) 59. Re6 $2 {[%emt 0:01:05][%mdl 8192]} (59. Kf2 $11 Kh3 60. Re6) 59... Kg2 {[%emt 0:01:56]} 60. Rg6+ {[%emt 0:00:24]} Kf1 {[%emt 0:00:01]} 61. Rf6 {[%emt 0:00:22]} Ra7 {[%emt 0:01:02]} 62. Rxd6 {[%emt 0:01:15]} Ra3+ {[%emt 0:00:16]} 63. Kxe4 {[%emt 0:00:13]} f2 $2 {[%emt 0:00:13]} (63... Ke2 {mates} 64. Rh6 f2 65. Rh1 Rc3 66. Ke5 Rxc4 67. Ra1 f1=Q 68. Ra2+ Kd3 69. Kd6 Rd4 70. Ra7 c4 71. Rc7 c3 72. Rh7 c2 73. Rc7 Qf4+ 74. Kd7 Rxd5+ 75. Kc8 {[#]} Qxc7+ $3 {[%mdl 512]} 76. Kxc7 c1=Q+ 77. Kb7 Rd7+ 78. Ka6 Qc8+ 79. Kxb6 Qc7+ 80. Ka6 Qa7#) 64. Rf6 $19 {[%emt 0:01:00]} Rc3 $2 {[%emt 0:02:51]} ({Black should try} 64... Ke2 $17 {( -> ...Re3+)} 65. d6 Re3+ 66. Kd5 Rf3 67. Rxf3 Kxf3) 65. d6 $11 {[%emt 0:00:11] The position is equal.} ({Don't blunder} 65. Rxb6 $2 Ke2 66. Ke5 f1=Q $19) 65... Rxc4+ {[%emt 0:00:05]} 66. Ke3 {[%emt 0:00:33]} Rc3+ {[%emt 0:01:49]} (66... Ke1 $5 67. d7 $8 Rd4 68. Rxf2 Rxd7 $11) 67. Kd2 {[%emt 0:00:01]} Rg3 {[%emt 0:00:08] aiming for ...c4.} 68. d7 {[%emt 0:00:19]} Rg8 {[%emt 0:00:30]} 69. Ke3 {[%emt 0:00:22]} Rg3+ $1 {[%emt 0:00:07]} 70. Kd2 {[%emt 0:00:19]} Rg8 {[%emt 0:00:46]} 71. Ke3 {[%emt 0:00:01]} Rg3+ $1 {[%emt 0:00:32]} 72. Ke4 {[%emt 0:02:48] And White is the lucky defender.  Weighted Error Value: White=0.71/Black=0.41} 1/2-1/2

[Event "Asian Amateur-ch Open 2022"]
[Site "Muscat"]
[Date "2022.10.02"]
[Round "2.7"]
[White "Takenouchi, Atsushi"]
[Black "Thapa, Krishna"]
[Result "0-1"]
[ECO "D85"]
[WhiteElo "1629"]
[BlackElo "1928"]
[Annotator "TA"]
[PlyCount "92"]
[EventDate "2022.09.29"]
[EventType "swiss"]
[SourceTitle "playchess.com"]
[Source "ChessBase"]
[SourceQuality "1"]
[TimeControl "5400+30"]

{[%evp 15,92,15,24,-18,-14,-17,-21,-16,-9,-45,0,-29,-18,-18,-13,-60,-46,-86,-31,-33,-14,-37,-27,-23,-9,-18,0,0,0,-25,-21,-36,0,-31,-4,-18,0,-33,13,-23,-13,-42,14,26,20,0,9,0,38,0,0,0,0,2,58,73,80,72,63,39,70,68,68,52,143,32,65,0,122,0,38,50,62,47,47,19,29,-334,-325]} 1. d4 {[%emt 0:00:02]} Nf6 {[%emt 0:00:17]} 2. c4 {[%emt 0:00:03]} g6 {[%emt 0:00:08]} 3. Nf3 {[%emt 0:00:32]} Bg7 {[%emt 0:00:07]} 4. Nc3 {[%emt 0:00:08]} d5 {[%emt 0:00:10]} 5. cxd5 {[%emt 0:00:20]} Nxd5 {[%emt 0:00:07]} 6. e4 {[%emt 0:00:14]} Nxc3 {[%emt 0:00:05]} 7. bxc3 {[%emt 0:00:04]} c5 {[%emt 0:00:37]} 8. Be3 {[%emt 0:00:27]} O-O {[%emt 0:00:10]} 9. Qb3 {[%emt 0:02:45] D85: Exchange Grünfeld: Unusual White 7th moves and lines with 7 Nf3.} cxd4 {[%emt 0:03:21]} 10. cxd4 {[%emt 0:01:32]} Nc6 {[%emt 0:00:26][%cal Rc6d4]} 11. Rd1 {[%emt 0:10:30] The position is equal.} Bg4 {[%emt 0:15:23] Strongly threatening ...Bxf3.} 12. e5 {[%emt 0:15:22] [#]} (12. d5 $5 {[%cal Rd5c6]} Ne5 13. Be2 $11) 12... b6 $146 {[%emt 0:04:54]} ({Predecessor:} 12... Na5 13. Qa3 Qd5 14. Be2 Nc4 15. Qb3 Nxe3 16. fxe3 Be6 17. Qxd5 Bxd5 18. a4 Rfc8 {½-½ (28) Vaitonis,V (1944)-Vicas,M (2010) Lithuania 2016}) 13. a4 {[%emt 0:10:08]} Rc8 {[%emt 0:05:21]} 14. Be2 {[%emt 0:21:21]} Na5 {[%emt 0:02:54]} 15. Qa2 {[%emt 0:02:25]} (15. Qb4 $11) 15... Bf5 {[%emt 0:01:34]} (15... Be6 $5 {[%cal Re6a2]} 16. d5 Bf5 $15) 16. Bd3 {[%emt 0:16:02] [#] Against Rc2} Be6 {[%emt 0:05:10]} (16... Bxd3 $1 $17 17. Rxd3 Nc4) 17. Qe2 $15 {[%emt 0:05:13] Against Rc2} Bb3 {[%emt 0:04:41][%csl LRa4,LRd1]} 18. Ra1 {[%emt 0:02:27]} Qd7 {[%emt 0:10:08]} 19. Bb5 {[%emt 0:03:25]} Qg4 {[%emt 0:00:14] ...Rc2 is the strong threat.} 20. O-O {[%emt 0:03:08]} Bc4 {[%emt 0:10:19]} 21. Bxc4 {[%emt 0:01:22]} Nxc4 {[%emt 0:02:01]} 22. Qe1 {[%emt 0:01:37]} Qd7 {[%emt 0:02:45]} 23. Nd2 {[%emt 0:01:00]} Na5 {[%emt 0:01:19]} 24. Qd1 {[%emt 0:00:39]} Qd5 {[%emt 0:00:32]} 25. Qf3 {[%emt 0:00:31]} Qd7 {[%emt 0:00:51]} 26. h4 {[%emt 0:00:46]} Rc3 {[%emt 0:02:18]} (26... Nc6 $15 27. Qd1 f6) 27. Ne4 {[%emt 0:00:35]} Rc4 {[%emt 0:00:37]} 28. h5 {[%emt 0:00:30]} h6 {[%emt 0:14:21]} (28... Nb3 $15 29. h6 Bh8) 29. hxg6 {[%emt 0:00:30]} fxg6 {[%emt 0:00:06]} 30. Qg3 {[%emt 0:00:12]} Qf5 {[%emt 0:01:01]} 31. Nd2 {[%emt 0:00:32]} Rc3 {[%emt 0:01:47]} 32. Rfc1 {[%emt 0:01:02]} (32. Qh4 $5 {[%cal Rh4e7]}) 32... Rfc8 {[%emt 0:00:36]} 33. Rxc3 {[%emt 0:00:15]} Rxc3 {[%emt 0:00:01]} 34. Qh4 $36 {[%emt 0:00:21][%csl LRe7,LRh6][%mdl 2048] White is pushing.} g5 {[%emt 0:01:19]} (34... Nc6 $11) 35. Qh5 $1 $14 {[%emt 0:00:19]} ({But not} 35. Qe4 Qxe4 36. Nxe4 Rd3 $15) 35... Qf7 {[%emt 0:02:10]} 36. Qg4 {[%emt 0:00:33]} Qd5 {[%emt 0:01:10]} 37. Qf5 {[%emt 0:01:04]} Rc7 {[%emt 0:03:53]} 38. Qg6 {[%emt 0:00:42]} Qf7 {[%emt 0:00:29] Inhibits Qe8+.} 39. Qe4 {[%emt 0:00:25]} Qe6 {[%emt 0:01:22]} (39... e6 $14) 40. Qa8+ {[%emt 0:00:35]} ({White should try} 40. Nf3 $16) 40... Qc8 {[%emt 0:01:27]} 41. Qe4 {[%emt 0:00:24]} ({White should play} 41. Qf3 $14) 41... Qe6 $1 $16 {[%emt 0:01:10]} 42. Qa8+ {[%emt 0:00:28]} (42. Nf3 $16) 42... Kh7 {[%emt 0:00:21]} (42... Qc8 $5 {[%cal Rc8a8]} 43. Qe4 Qe8 $14) 43. Qe8 {[%emt 0:00:32]} Rc8 {[%emt 0:01:18]} 44. Qh5 {[%emt 0:00:05]} Qg6 {[%emt 0:00:42]} 45. Qh3 {[%emt 0:00:08]} e6 {[%emt 0:00:49]} 46. Nf3 $2 {[%emt 0:00:18][%mdl 8192] [#]} (46. Qg4 $11 {and White is okay.}) 46... g4 {[%emt 0:00:41] Weighted Error Value: White=0.36/Black=0.19 (very precise)} 0-1